{"text_format":"1","workbook":"xlsx","n_sheets":5,"sheets":["Info","Antragstammdaten","Tabelle1","Antragsberechtigung","Tooldaten"],"not_rendered":{"charts":0,"images":6,"macros":1,"external_links":0,"defined_names":7,"comments":1,"pivot_tables":0},"unopened":[],"bounds":{"document_bytes":16777216,"sheet_cells":100000,"rows_first":2000,"rows_last":500,"rows_between":2000,"halvings":0,"cell_chars":16384,"cell_head_chars":4096},"cells_cut":0,"cells_raw":0,"read":"whole","date_system":"1900"}

{"sheet":"Info","index":0,"n_rows":36,"n_cols":3,"rows_kept":36,"cut":false,"hidden":false,"merged":[[30,2,30,4],[0,2,0,3],[1,2,1,3],[32,2,33,3],[32,4,33,4],[19,2,21,4],[25,2,25,4],[27,2,27,4],[31,2,31,4],[9,2,10,4],[2,0,2,1],[28,2,29,3],[7,2,8,4],[14,2,15,4],[16,2,16,4],[17,2,17,4],[18,2,18,4],[23,2,24,4],[26,2,26,4],[4,2,6,4],[11,2,12,4]]}
[null,null,{"$f":"Tooldaten!D5","v":"Tool zur Corona-Überbrückungshilfe 4"}]
[]
[{"$f":"Tooldaten!D6","v":"V1.7"}]
[null,{"$f":"\"Über \"&\"\"\"\"&Tooldaten!D5&\"\"\" \"","v":"Über \"Tool zur Corona-Überbrückungshilfe 4\" "}]
[null,null,"Am 12. Juni 2020 hat die Bundesregierung die Eckpunkte für die „Überbrückungshilfe“ beschlossen und diese nach den bisherigen 4 Phasen (Förderzeitraum Juni-August 2020, September-Dezember 2020, Förderzeitraum November 2020-Juni 2021 bzw. Förderzeitraum Juli 2020-Dezember 2021) um die 5. Phase (Förderzeitraum Januar 2022-Juni 2022) verlängert.\nAntragsberechtigt für diese Überbrückungshilfe 4 sind folgende Unternehmen:"]
[]
[]
[null,null,"n Größere Unternehmen mit bis zu einem Umsatz von 750 Mio. Euro im Jahr 2020, die mittelbar und unmittelbar Corona-bedingt erhebliche Umsatzausfälle erleiden."]
[]
[null,null,"n Vereine, gemeinnützige Unternehmen und Organisationen aus allen Branchen."]
[]
[null,null,"n Soloselbständige und selbständige Angehörige der Freien Berufe aller Branchen für den Förderzeitraum Januar 2022 bis Juni 2022."]
[]
[]
[null,null,"n Unternehmen, die in einem Monat einen Corona-bedingten Umsatzeinbruch von mindestens 30 Prozent im Vergleich zum Referenzmonat im Jahr 2019 erlitten haben. "]
[]
[null,null,"Die Antragsstellung muss von einem vom Antragssteller beauftragten prüfenden Dritten durchgeführt werden. In der "]
[null,null,"FAQ-Liste des Bundes zur Überbrückungshilfe "]
[null,null,"ist definiert, wer dies im Einzelnen ist."]
[null,null,"Das Excel-Tool unterstützt Sie bei der Beantragung der Überbrückungshilfe 4. Prüfen Sie mit Hilfe der Datei die Antragsvoraussetzungen, und erfassen Sie die Umsatz- und Fixkostenschätzung für die Fördermonate. Profitieren Sie von einer automatischen Berechnung des Fördersatzes und der voraussichtlichen Förderhöhe."]
[]
[]
[null,"Hinweise"]
[null,null,"Zur Definition der antragsrelevanten Größen „Umsatz“ und „Fixkosten“ und zur Berechnung der Förderung beachten Sie die offiziellen Hinweise im Antragsportal. \nHintergrundinformationen und eine Anleitung zum Erfassen des Antrags finden Sie im InfoDB-Dokument"]
[]
[null,null,"Unterstützung bei der Beantragung der Überbrückungshilfe 4 - DATEV Hilfe-Center"]
[]
[]
[null,null,"Diese Dokumente werden regelmäßig an den aktuellen Informationsstand angepasst. Die hier dargestellte Berechnung erfolgt insoweit unter Vorbehalt."]
[]
[null,null,"Maßgeblich ist die Berechnung auf der Verfahrensplattform für die Überbrückungshilfe "]
[null,null,"http://www.ueberbrueckungshilfe-unternehmen.de/"]
[null,null,"Bei der Berechnung der voraussichtlichen Förderhöhe mit dem „Tool zur Corona-Überbrückungshilfe 4“ findet insbesondere die FAQ-Liste des Bundes zur Überbrückungshilfe Berücksichtigung."]
[]
[null,"Verbundene Unternehmen "]
[null,null,"Für verbundene Unternehmen ist insgesamt nur ein Antrag zu stellen. "]

{"sheet":"Antragstammdaten","index":1,"n_rows":52,"n_cols":5,"rows_kept":52,"cut":false,"hidden":false,"merged":[[2,0,2,1],[0,2,0,3],[1,2,1,3]]}
[null,null,{"$f":"Tooldaten!D5","v":"Tool zur Corona-Überbrückungshilfe 4"}]
[]
[{"$f":"Tooldaten!D6","v":"V1.7"}]
[null,"1. Antragsteller"]
[null,"1.1 Art des Mandats"]
[null,null,"Art des Mandats",null,"*"]
[]
[null,"1.2. Angaben zum Antragsteller"]
[null,null,"Anrede",null,"*"]
[null,null,"Titel"]
[null,null,"Vorname",null,"*"]
[null,null,"Nachname",null,"*"]
[null,null,"Name des Unternehmens",null,"*"]
[null,null,"Rechtsform",null,"*"]
[null,null,"Branche",null,"*"]
[null,null,"Handelsregisternummer"]
[null,null,"Amtsgericht"]
[null,null,"Branchenschlüssel",null,"*"]
[null,null,"Art des Unternehmens",null,"*"]
[]
[null,"1.3. Gemeinnützige Übernachtungsstätte"]
[null,null,"Name der Übernachtungsstätte"]
[null,null,"Straße und Hausnummer"]
[null,null,"Postleitzahl"]
[null,null,"Ort"]
[null,null,"Landkreis"]
[null,null,"Bundesland"]
[]
[null,"1.4. Steuer- und Finanzdaten"]
[null,null,"Umsatzsteuer Id.Nr."]
[null,null,"Steuernummer",null,"*"]
[null,null,"Steuerliche Identifikationsnummer",null,"*"]
[null,null,"Zuständiges Finanzamt",null,"*"]
[]
[null,"1.5. Adresse inländischer Sitz der Geschäftsführung"]
[null,null,"Straße und Hausnummer",null,"*"]
[null,null,"Postleitzahl",null,"*"]
[null,null,"Ort",null,"*"]
[null,null,"Landkreis",null,"*"]
[null,null,"Bundesland",null,"*"]
[]
[null,"1.6. Kontaktdaten"]
[null,null,"Telefon",null,"*"]
[null,null,"Fax",null,"*"]
[null,null,"E-Mail-Adresse",null,"*"]
[]
[null,"1.7. Beim Finanzamt hinterlegte Kontoverbindung"]
[null,null,"Kontoinhaber",null,"*"]
[null,null,"IBAN",null,"*"]
[null,null,"BIC",null,"*"]
[null,null,"Kreditinstitut"]
[null,null,"(mit * markierte Angaben sind im Online-Portal des BMWi verpflichtend anzugeben)"]

{"sheet":"Tabelle1","index":2,"n_rows":91,"n_cols":21,"rows_kept":91,"cut":false,"hidden":false,"merged":[[63,2,63,5],[64,2,64,5],[12,4,12,9],[62,2,62,5],[30,2,30,6],[31,2,31,6],[32,2,32,6],[33,2,33,6],[34,2,34,6],[35,2,35,6],[36,2,36,6],[26,2,26,6],[27,2,27,6],[28,2,28,6],[29,2,29,6],[20,2,20,5],[0,2,0,9],[2,0,2,1],[17,4,17,5],[16,2,16,5],[15,2,15,5],[1,2,1,9],[9,5,9,12],[7,11,7,12],[10,5,10,12],[11,5,11,12],[21,2,21,5],[22,2,22,5],[37,2,38,6],[39,2,39,6],[40,2,40,6],[41,2,41,6],[42,2,42,6],[43,2,43,6],[44,2,44,6],[45,2,45,6],[47,2,47,6],[56,2,56,6],[57,2,57,6],[58,2,58,6],[48,2,48,6],[49,2,49,6],[50,2,50,6],[51,2,51,6],[53,2,53,6],[77,2,77,6],[19,2,19,6],[23,2,23,6],[71,2,71,6],[72,2,72,6],[73,2,73,6],[74,2,74,6],[75,2,75,6],[66,2,66,6],[67,2,67,6],[68,2,68,6],[69,2,69,6],[70,2,70,6],[54,2,54,6],[55,2,55,6],[46,2,46,6]]}
[null,null,{"$f":"Tooldaten!D5","v":"Tool zur Corona-Überbrückungshilfe 4"},null,null,null,null,null,null,null,null,null,null,null,null,null,"Auf U57 bis 67 achten"]
[]
[{"$f":"Tooldaten!D6","v":"V1.7"}]
[null,"Antragstellung und Prüfung der Antragsvoraussetzungen"]
[null,null,null,null,null,null,null,null,null,null,null,null,null,null,null,0,0,null,null,0,0]
[null,null,null,null,null,"Beschäftigte zum 29. Februar 2020 / 31. Dezember 2021:","keine",null,null,null,null,null,null,null,null,null,null,null,null,null,"Regelförderung (ggfs. gekappt max. mtl. 50.000 €)"]
[null,null,null,null,null,null,null,null,null,null,null,null,null,null,null,null,null,null,null,null,"Regelförderung (ggfs. gekappt max. mtl. 50.000 €)"]
[null,null,null,null,null,null,null,null,null,null,null,"Antragsnummer:",null,null,null,null,null,null,null,null,"Regelförderung (ggfs. gekappt max. mtl. 50.000 €)"]
[]
[null,null,"Ermittlung der Vergleichsumsätze:",null,null,"Zu jedem Fördermonat den gleichen Monat aus dem Jahr 2019 als Vergleichsumsatz"]
[null,null,"Ermittlung der Vergleichsumsätze:",null,null,"Zu jedem Fördermonat den gleichen Monat aus dem Jahr 2019 als Vergleichsumsatz",null,null,null,null,null,null,null,null,null,null,"Gründungsdatum:",null,null,{"$f":"U11-S11","v":43586},"2019-05-01"]
[null,null,"Ermittlung der Vergleichsumsätze:",null,null,"Monatlicher Durschschnittsumsatz basierend auf dem Ganzjahresumsatz 2021 aus steuerlicher Erfassung",null,null,null,null,null,null,null,null,null,null,null,null,null,{"$f":"U12-S11","v":43617},"2019-06-01"]
[]
[null,null,null,null,null,null,"Dezember","Januar","Februar","März","April","Mai","Juni","Summe",null,null,"Variante:",1,"(1: Zeile 10 relevant, 2: Zeile 11 relevant, 3: Zeile 12 relevant)"]
[null,"1. Berechnung der Antragsberechtigung und Umsätze für den Förderzeitraum",null,null,null,null,null,null,null,null,null,null,null,null,null,null,"Novemberhilfe angegeben:",null,null,0,"(0: nein, 1 ja)"]
[null,null,"Umsätze 2021",null,null,null,null,null,null,null,null,null,null,{"$f":"SUM(H16:M16)","v":0},null,null,"Dezemberhilfe angegeben:",null,null,0,"(0: nein, 1 ja)"]
[null,null,"Umsätze Dezember 2019 / Januar bis Juni 2019",null,null,null,null,null,null,null,null,null,null,{"$f":"SUM(H17:M17)","v":0}]
[null,null,null,null,"oder alternativ: Jahresumsatz 2019:"]
[null,null,"Veränderung der Umsätze in %",null,null,null,{"$f":"AbweichungInProzent(G16,G17)","v":0},0,0,0,0,0,0]
[null,null,"Fördersatz (Erstattung der Fixkosten) in %",null,null,null,null,{"$f":"ErstattungInProzent(H$19,$P$5)","v":0},{"$f":"ErstattungInProzent(I$19,$P$5)","v":0},{"$f":"ErstattungInProzent(J$19,$P$5)","v":0},{"$f":"ErstattungInProzent(K$19,$P$5)","v":0},0,0]
[null,null,"Umsätze kumuliert (Dezember 2021 und Januar 2022)",null,null,null,{"$f":"G16+H16","v":0}]
[null,null,"Umsätze kumuliert Dezember 2019 / Januar 2019",null,null,null,{"$f":"G17+H17","v":0}]
[null,null,"Veränderung kumulierte Umsätze in %",null,null,null,{"$f":"AbweichungInProzent(G21,G22)","v":0}]
[null,null,"Eigenkapitalzuschuss in %",null,null,null,null,{"$f":"IF(AND($Q71 = 1,$G19 <=-50,H20>0),50,IF(AND($Q71 <> 1,$G23<=-50,H20>0),30,0))","v":0},{"$f":"IF(AND($Q71 = 1,$G19 <=-50,I20>0),50,IF(AND($Q71 <> 1,$G23<=-50,I20>0),30,0))","v":0},{"$f":"IF(AND($Q71 = 1,$G19 <=-50,J20>0),50,IF(AND($Q71 <> 1,$G23<=-50,J20>0),30,0))","v":0},{"$f":"IF(AND($Q71 = 1,$G19 <=-50,K20>0),50,IF(AND($Q71 <> 1,$G23<=-50,K20>0),30,0))","v":0},{"$f":"IF(AND($Q71 = 1,$G19 <=-50,L20>0),50,IF(AND($Q71 <> 1,$G23<=-50,L20>0),30,0))","v":0},{"$f":"IF(AND($Q71 = 1,$G19 <=-50,M20>0),50,IF(AND($Q71 <> 1,$G23<=-50,M20>0),30,0))","v":0},null,null,null,"Anzahl der Monate mit mind. 50% Umsatzrückgang:",null,null,null,0]
[null,null,null,null,null,null,null,{"$f":"SUM(U24,H19<=-50)","v":0},{"$f":"SUM(U24,H19<=-50,I19<=-50)","v":0},{"$f":"SUM(U24,H19<=-50,I19<=-50,J19<=-50)","v":0},{"$f":"SUM(U24,H19<=-50,I19<=-50,J19<=-50,K19<=-50)","v":0},{"$f":"SUM(U24,H19<=-50,I19<=-50,J19<=-50,K19<=-50,L19<=-50)","v":0},{"$f":"SUM(U24,H19<=-50,I19<=-50,J19<=-50,K19<=-50,L19<=-50,M19<=-50)","v":0}]
[null,"2. Ermittlung erstattungsfähiger Fixkosten",null,null,null,null,null,null,null,null,null,null,null,null,null,null,"Anschubhilfe-Branche liegt vor:",null,null,0]
[null,"1.","Mieten und Pachten für Gebäude, Grundstücke und Räumlichkeiten",null,null,null,null,null,null,null,null,null,null,{"$f":"SUM(H27:M27)","v":0},null,null,"Restart gewählt:",null,null,0]
[null,"2.","Weitere Mietkosten",null,null,null,null,null,null,null,null,null,null,0]
[null,"3.","Zinsaufwendungen für betriebliche Kredite und Darlehen",null,null,null,null,null,null,null,null,null,null,0]
[null,"4.","Abschreibungen auf Wirtschaftsgüter des Anlagevermögens bis zu einer Höhe von 50 %",null,null,null,null,null,null,null,null,null,null,0]
[null,"5.","Finanzierungskostenanteil von Leasingraten",null,null,null,null,null,null,null,null,null,null,0]
[null,"6.","Ausgaben für notwendige Instandhaltung, Wartung oder Einlagerung",null,null,null,null,null,null,null,null,null,null,0]
[null,"7.","Ausgaben für Elektrizität, Wasser, Heizung und Reinigung",null,null,null,null,null,null,null,null,null,null,0]
[null,"8.","Grundsteuern",null,null,null,null,null,null,null,null,null,null,0,null,1]
[null,"9.","Betriebliche Lizenzgebühren",null,null,null,null,null,null,null,null,null,null,0]
[null,"10.","Versicherungen, Abonnements und andere feste betriebliche Ausgaben",null,null,null,null,null,null,null,null,null,null,0]
[null,"11.","Kosten für prüfende Dritte, die im Rahmen der Beantragung der Corona-Überbrückungshilfe anfallen",null,null,null,null,null,null,null,null,null,null,0]
[null,"12.","Personalaufwendungen, die nicht von Kurzarbeitergeld erfasst sind",null,null,null,null,false,false,false,false,false,false]
[null,null,null,null,null,null,null,{"$f":"SUM(H27:H37)*0.2*H38*OR($T$26,NOT($T$27))","v":0},0,0,0,0,0,{"$f":"SUM(H39:M39)","v":0}]
[null,"13.","Kosten für Auszubildende",null,null,null,null,null,null,null,null,null,null,{"$f":"SUM(H40:M40)","v":0}]
[null,"14.","Bauliche Modernisierungs-, Renovierungs- oder Umbaumaßnahmen bis zu 20.000 € pro Monat",null,null,null,null,null,null,null,null,null,null,{"$f":"SUM(H41:J41)","v":0}]
[null,"14.","Marketing- und Werbekosten",null,null,null,null,null,null,null,null,null,null,{"$f":"SUM(H42:M42)","v":0}]
[null,"15.","Ausgaben für Hygienemaßnahmen",null,null,null,null,null,null,null,null,null,null,{"$f":"SUM(H43:M43)","v":0}]
[null,"17.","Investitionen für Digitalisierung",null,null,null,null,null,null,null,null,null,null,0]
[null,"16.","Anwalts- und Gerichtskosten bis zu 20.000 € pro Monat",null,null,null,null,null,null,null,null,null,null,{"$f":"SUM(H45:M45)","v":0}]
[null,"23.","Eigenkapitalzuschuss",null,null,null,null,{"$f":"SUM(H27:H37)*H24/100","v":0},0,0,0,0,0,{"$f":"SUM(H46:M46)","v":0}]
[null,"50.","Provisionen und Ausfall- und Vorbereitungskosten (nur für Reisebranche)",null,null,null,null,null,null,null,null,null,null,{"$f":"SUM(H47:M47)","v":0}]
[null,"51.","Ausfall- und Vorbereitungskosten (nur für Veranstaltungs- und Kulturbranche)",null,null,null,null,null,null,null,null,null,null,{"$f":"SUM(H48:M48)","v":0}]
[null,"52.","Warenwertabschreibungen für verderbliche Ware oder Saisonware (nur für Einzelhandel, Hersteller, Großhändler und Gastronomiebetriebe)",null,null,null,null,null,null,null,null,null,null,{"$f":"SUM(H49:M49)","v":0}]
[null,"53.","Anschubhilfe (nur für Reisebranche oder Veranstaltungs- und Kulturbranche)",null,null,null,null,null,null,null,null,null,null,{"$f":"IF(SUM(H50:M50)>2000000,2000000,SUM(H50:M50))","v":0}]
[null,"54.","Kosten für Unternehmen der Pyrotechnikindustrie (nur für Unternehmen der Pyrotechnikindustrie)",null,null,null,null,null,null,null,null,null,null,{"$f":"SUM(H51:M51)","v":0}]
[null,"55.","Lager- und Transportkosten (nur für Unternehmen der Pyrotechnikindustrie)",null,null,null,null,null,null,null,null,null,null,0]
[null,"= erstattungsfähige Fixkosten",null,null,null,null,null,{"$f":"SUM(H27:H52)","v":0},0,0,0,0,0,0]
[null,null,"Summe allgemeine Fixkosten (Erstattung gemäß errechnetem Fördersatz)",null,null,null,null,{"$f":"SUM(H27:H46)","v":0},{"$f":"SUM(I27:I46)","v":0},{"$f":"SUM(J27:J46)","v":0},{"$f":"SUM(K27:K46)","v":0},0,0,0]
[null,null,"Summe besondere Fixkosten",null,null,null,null,{"$f":"SUM(H56:H58)","v":0},{"$f":"SUM(I56:I58)","v":0},{"$f":"SUM(J56:J58)","v":0},{"$f":"SUM(K56:K58)","v":0},0,0,0]
[null,null,"davon besondere Fixkosten (50, 52 und 53) mit Erstattung gemäß Fördersatz",null,null,null,null,{"$f":"SUM(H47,H49,H50)","v":0},{"$f":"SUM(I47,I49,I50)","v":0},{"$f":"SUM(J47,J49,J50)","v":0},{"$f":"SUM(K47,K49,K50)","v":0},0,0,0]
[null,null,"davon besondere Fixkosten (51, 54 und 55) mit Erstattung zu 90%",null,null,null,null,{"$f":"SUM(H48,H51,H52)","v":0},{"$f":"SUM(I48,I51,I52)","v":0},{"$f":"SUM(J48,J51,J52)","v":0},{"$f":"SUM(K48,K51,K52)","v":0},0,0,0]
[null,null,"davon \"Restart-Prämie\" (Position 41)",null,null,null,null,{"$f":"IF($T$27=1,H65,\"\")","v":""},{"$f":"IF($T$27=1,I65,\"\")","v":""},{"$f":"IF($T$27=1,J65,\"\")","v":""},{"$f":"IF($T$27=1,K65,\"\")","v":""},"","",0,null,null,null,null,null,1]
[null,null,"Summe der Fixkosten 1 bis 11 (Grundlage für den Eigenkapitalzuschuss)",null,null,null,null,{"$f":"SUM(H27:H37)","v":0},{"$f":"SUM(I27:I37)","v":0},{"$f":"SUM(J27:J37)","v":0},{"$f":"SUM(K27:K37)","v":0},0,0,{"$f":"SUM(H59:M59)","v":0},null,null,null,null,null,1]
[null,null,null,null,null,null,null,null,null,null,null,null,null,null,null,null,null,null,null,1]
[null,"3. Ermittlung der Personalkostenhilfe (\"Restart-Prämie\")",null,null,null,null,null,null,null,null,null,null,null,null,null,null,null,null,null,1]
[null,null,null,null,"Personalkosten Vergleichsmonat Mai 2021: ",null,null,null,null,null,null,null,null,null,null,null,null,null,null,1,1]
[null,null,"Personalkosten im Förderzeitraum",null,null,null,null,null,null,null,null,null,null,{"$f":"SUM(H63:J63)","v":0},null,null,null,null,null,null,1]
[null,null,"Personalkosten im Vergleichszeitraum",null,null,null,null,null,null,null,null,null,null,{"$f":"SUM(H64:J64)","v":0},null,null,null,null,null,null,1]
[null,"41.","Personalkostenhilfe (\"Restart-Prämie\")",null,null,null,null,{"$f":"#REF!","v":{"$error":"#REF!"}},{"$f":"#REF!","v":{"$error":"#REF!"}},{"$f":"#REF!","v":{"$error":"#REF!"}},null,null,null,{"$f":"SUM(H65:J65)","v":{"$error":"#REF!"}},null,null,null,null,null,null,1]
[null,"4. Ermittlung der Förderung",null,null,null,null,null,null,null,null,null,null,null,null,null,null,null,null,null,null,1]
[null,null,"Erstattung allgemeine Fixkosten",null,null,null,null,{"$f":"SUM(H27:H46)*H20/100","v":0},{"$f":"SUM(I27:I46)*I20/100","v":0},{"$f":"SUM(J27:J46)*J20/100","v":0},{"$f":"SUM(K27:K46)*K20/100","v":0},0,0,{"$f":"SUM(H67:M67)","v":0}]
[null,null,"Erstattung besonderer Fixkosten",null,null,null,null,{"$f":"SUM(H69:H71)","v":0},{"$f":"SUM(I69:I71)","v":0},0,{"$f":"SUM(K69:K71)","v":0},0,0,{"$f":"SUM(H68:M68)","v":0},null,1]
[null,null,"davon Erstattung besonderer Fixkosten gemäß Fördersatz",null,null,null,null,{"$f":"H56*H20/100","v":0},{"$f":"I56*I20/100","v":0},{"$f":"J56*J20/100","v":0},{"$f":"K56*K20/100","v":0},0,0,{"$f":"SUM(H69:M69)","v":0},null,1]
[null,null,"davon Erstattung besonderer Fixkosten zu 90%",null,null,null,null,{"$f":"H57*0.9","v":0},{"$f":"I57*0.9","v":0},0,{"$f":"K57*0.9","v":0},0,0,{"$f":"SUM(H70:M70)","v":0}]
[null,null,"davon Zuschuss aus Personalkostenhilfe (\"Restart-Prämie\")",null,null,null,null,{"$f":"IF($T$27=1,#REF!,\"\")","v":""},{"$f":"IF($T$27=1,#REF!,\"\")","v":""},{"$f":"IF($T$27=1,#REF!,\"\")","v":""},{"$f":"IF($T$27=1,#REF!,\"\")","v":""},{"$f":"IF($T$27=1,#REF!,\"\")","v":""},{"$f":"IF($T$27=1,#REF!,\"\")","v":""},{"$f":"SUM(H71:J71)","v":0}]
[null,null,"= rechnerischer Erstattungsbetrag",null,null,null,null,{"$f":"H67+H68","v":0},0,0,{"$f":"K67+K68","v":0},0,0,{"$f":"SUM(H72:M72)","v":0},null,1]
[null,null,"nicht berücksichtigte Fixkosten",null,null,null,null,{"$f":"NichtBeruecksichtigteFixkosten(H53,H72,H66)","v":0},{"$f":"NichtBeruecksichtigteFixkosten(I53,I72,I66)","v":0},{"$f":"NichtBeruecksichtigteFixkosten(J53,J72,J66)","v":0},{"$f":"NichtBeruecksichtigteFixkosten(K53,K72,K66)","v":0},0,0,null,null,1]
[null,null,"Erstattungssatz für nicht berücksichtigte Fixkosten in %",null,null,null,null,{"$f":"IF(P5<>3,ErstattungNichtBeruecksichtigteFixkosten(H73,H72,H19,H69),0)","v":0},{"$f":"IF(Q5<>3,ErstattungNichtBeruecksichtigteFixkosten(I73,I72,I19,I69),0)","v":0},{"$f":"IF(R5<>3,ErstattungNichtBeruecksichtigteFixkosten(J73,J72,J19,J69),0)","v":0},{"$f":"IF(S5<>3,ErstattungNichtBeruecksichtigteFixkosten(K73,K72,K19,K69),0)","v":0},{"$f":"IF(T5<>3,ErstattungNichtBeruecksichtigteFixkosten(L73,L72,L19,L69),0)","v":0},{"$f":"IF(U5<>3,ErstattungNichtBeruecksichtigteFixkosten(M73,M72,M19,M69),0)","v":0},null,null,1]
[null,null,"zusätzlicher förderfähiger Betrag bei Ausnahmefall",null,null,null,null,{"$f":"IF(P5<>3,H73*(H74/100),0)","v":0},{"$f":"IF(Q5<>3,I73*(I74/100),0)","v":0},{"$f":"IF(R5<>3,J73*(J74/100),0)","v":0},{"$f":"IF(S5<>3,K73*(K74/100),0)","v":0},0,0,{"$f":"SUM(#REF!)","v":{"$error":"#REF!"}}]
[null,null,"Erstattungsfähige Förderung (ggfs. gekappt bei maximal mtl. 10.000.000 €)",null,null,null,null,{"$f":"ErstattbareFoerderung(H75,H72)","v":0},{"$f":"ErstattbareFoerderung(I75,I72)","v":0},0,{"$f":"ErstattbareFoerderung(K75,K72)","v":0},0,0,{"$f":"SUM(H76:M76)","v":0}]
[null,"./.","andere anrechenbare Förderungen/Hilfen/Erstattungen",null,null,null,null,null,null,null,null,null,null,{"$f":"SUM(H77:M77)","v":0}]
[null,"=","Förderung",null,null,null,null,{"$f":"IF(H76-H77<0,0,H76-H77)","v":0},{"$f":"IF(I76-I77<0,0,I76-I77)","v":0},{"$f":"IF(J76-J77<0,0,J76-J77)","v":0},{"$f":"IF(K76-K77<0,0,K76-K77)","v":0},0,0,{"$f":"IF(C78=\"Förderung\",SUM(H78:M78),MIN(SUM(H78:M78),1800000))","v":0}]
[]
[]
[null,null,null,null,null,null,null,null,null,null,null,null,null,null,null,1,null,null,null,null,1]
[]
[]
[null,null,null,null,null,null,null,null,null,null,null,null,null,null,null,1,null,null,null,null,1]
[null,null,null,null,null,null,null,null,null,null,null,null,null,null,null,null,null,null,null,null,1]
[null,null,null,null,null,null,null,null,null,null,null,null,null,null,null,null,null,null,null,null,1]
[]
[]
[null,null,null,null,null,null,null,null,null,null,null,null,null,null,null,1]
[null,null,null,null,null,null,null,null,null,null,null,null,null,null,null,1]
[null,null,null,null,null,null,null,null,null,null,null,null,null,null,null,1]

{"sheet":"Antragsberechtigung","index":3,"n_rows":31,"n_cols":3,"rows_kept":31,"cut":false,"hidden":false,"merged":[[20,1,20,2]]}
["2. Bestätigung zur Antragsberechtigung"]
["2.1 Erklärung"]
[null,"Der Antragsteller hatte im Jahr 2020 einen Jahresumsatz von nicht mehr als 750 Mio. Euro.","Ja"]
[null,"Der Antragsteller ist als Unternehmen dauerhaft wirtschaftlich am Markt tätig.","Ja"]
[null,"Bei dem Antragsteller handelt es sich nicht um ein öffentliches Unternehmen.","Ja"]
[null,"Der Antragsteller war nicht bereits am 31. Dezember 2019 in Schwierigkeiten gemäß Art. 2 Abs. 18 der Allgemeinen Gruppenfreistellungs-verordnung (Verordnung (EU) Nr. 651/2014).","Ja"]
[null,"Falls nicht zutreffend: Der Antragsteller versichert, die Schwierigkeiten (zwischenzeitlich) wieder überwunden zu haben."]
[null,"Der Umsatzeinbruch steht in Zusammenhang mit der Corona-Pandemie.","Ja"]
[null,"Es handelt sich beim Antragsteller um einen Soloselbständigen bzw. einen Freiberufler.","Nein"]
[null,"Falls zutreffend: Der Antragsteller übt seine Tätigkeit im Haupterwerb aus oder ist berechtigt, Überbrückungshilfe 4 im Nebenerwerb zu beantragen."]
[null,"Der Antragsteller ist Klein- oder Kleinstunternehmen (gemäß Anhang I der Allgemeinen Gruppenfreistellungsverordnung (EU) Nr. 651/2014).","Nein"]
[]
["2.2 Anzahl der Mitarbeiter"]
[null,"Beschäftigte über 30 Stunden und Auszubildende"]
[null,"Beschäftigte bis 30 Stunden"]
[null,"Beschäftigte bis 20 Stunden"]
[null,"Beschäftigte auf 450 Euro-Basis"]
[null,"Gewichtete Summe der Mitarbeiter"]
[]
["2.3 Gründungsdatum"]
[null,"Das Unternehmen wurde vor dem 01.01.2019 gegründet."]
[]
["2.4 Weitere Angaben"]
[null,"Der Antragsteller war von Absagen der Advents- und Weihnachtsmärkte betroffen.","Ja"]
[]
["2.5 Branchenbereich"]
[null,"Der Antragsteller ist in folgendem Branchenbereich tätig:","Nein"]
[null,"- Reisebranche","Nein"]
[null,"- Veranstaltungs- und Kulturbranche","Nein"]
[null,"- Einzelhandel, Großhandel, Hersteller, Gastronomiebetrieb","Nein"]
[null,"- Pyrotechnik","Nein"]

{"sheet":"Tooldaten","index":4,"n_rows":28,"n_cols":5,"rows_kept":28,"cut":false,"hidden":false,"merged":[]}
[]
[]
[]
[]
[null,null,"Tooltitel","Tool zur Corona-Überbrückungshilfe 4"]
[null,null,"Version","V1.7","auch bei frmAntragsberechtigung ändern"]
[]
[]
[null,null,"Ermittlung der Vergleichsumsätze:"]
[null,null,null,"Zu jedem Fördermonat den gleichen Monat aus dem Jahr 2019 als Vergleichsumsatz"]
[null,null,null,"Monatlicher Durchschnittsumsatz 2019"]
[null,null,null,"Monatlicher Durchschnittsumsatz im Kalenderjahr 2019"]
[null,null,null,"Monatlicher Durchschnittsumsatz von Januar und Februar 2020"]
[null,null,null,"Monatlicher Durschschnittsumsatz basierend auf dem Ganzjahresumsatz 2021 aus steuerlicher Erfassung"]
[null,null,null,"Monatlicher Durchschnittsumsatz von Juli bis September 2021"]
[]
[]
[]
[null,null,"Anzahl der Fördermonate mit mind. 50% Umsatzeinbruch:"]
[null,null,null,"0 Monate"]
[null,null,null,"1 Monat"]
[null,null,null,"2 Monate"]
[null,null,null,"3 Monate"]
[null,null,null,"4 Monate"]
[null,null,null,"5 Monate"]
[null,null,null,"6 Monate"]
[null,null,null,"7 Monate"]
[null,null,null,"8 Monate"]